[Event "Titled Tuesday Blitz May 16 Early 2023"]
[White "Hambleton, Aman"]
[Black "Odegov, Artem"]
[WhiteFideId "2606577"]
[BlackFideId "34183644"]
[WhiteElo "2511"]
[BlackElo "2300"]
[Result "1-0"]
[Round "07"]
[TimeControl "180+2"]
[Date "2023.05.16"]
[WhiteClock "0:00:03"]
[BlackClock "0:00:00"]

1. d4 {[%clk 0:03:00]}  Nf6 {[%clk 0:02:58]} 2. Bf4 {[%clk 0:03:00]}  c5 {[%clk 0:02:51]} 3. e3 {[%clk 0:03:00]}  g6 {[%clk 0:02:51]} 4. c3 {[%clk 0:02:56]}  cxd4 {[%clk 0:02:49]} 5. exd4 {[%clk 0:02:56]}  Bg7 {[%clk 0:02:50]} 6. h3 {[%clk 0:02:57]}  O-O {[%clk 0:02:50]} 7. Nf3 {[%clk 0:02:57]}  d6 {[%clk 0:02:51]} 8. Bh2 {[%clk 0:02:39]}  Nc6 {[%clk 0:02:50]} 9. Be2 {[%clk 0:02:39]}  Qb6 {[%clk 0:02:44]} 10. Qb3 {[%clk 0:02:38]}  Be6 {[%clk 0:02:44]} 11. Qxb6 {[%clk 0:02:38]}  axb6 {[%clk 0:02:44]} 12. a3 {[%clk 0:02:39]}  Ra5 {[%clk 0:02:27]} 13. Nbd2 {[%clk 0:02:38]}  Rfa8 {[%clk 0:02:25]} 14. O-O {[%clk 0:02:38]}  Bh6 {[%clk 0:02:20]} 15. Bd3 {[%clk 0:02:32]}  Bd7 {[%clk 0:02:10]} 16. Nc4 {[%clk 0:02:31]}  R5a6 {[%clk 0:02:06]} 17. Ne3 {[%clk 0:02:17]}  R6a7 {[%clk 0:02:03]} 18. Rfe1 {[%clk 0:02:17]}  Kf8 {[%clk 0:01:56]} 19. Rad1 {[%clk 0:02:13]}  Na5 {[%clk 0:01:52]} 20. g4 {[%clk 0:02:03]}  Bg7 {[%clk 0:01:48]} 21. g5 {[%clk 0:01:42]}  Nh5 {[%clk 0:01:48]} 22. Nd5 {[%clk 0:01:42]}  Bxh3 {[%clk 0:01:45]} 23. Rxe7 {[%clk 0:01:10]}  Rd8 {[%clk 0:01:31]} 24. Rde1 {[%clk 0:01:11]}  Be6 {[%clk 0:01:26]} 25. Bb5 {[%clk 0:01:00]}  Raa8 {[%clk 0:01:12]} 26. R1xe6 {[%clk 0:00:23]}  fxe6 {[%clk 0:01:13]} 27. Rxe6 {[%clk 0:00:24]}  Kf7 {[%clk 0:01:12]} 28. Re7+ {[%clk 0:00:24]}  Kf8 {[%clk 0:01:12]} 29. Re6 {[%clk 0:00:09]}  Kf7 {[%clk 0:01:05]} 30. Re7+ {[%clk 0:00:09]}  Kg8 {[%clk 0:00:39]} 31. Nd2 {[%clk 0:00:10]}  Bf8 {[%clk 0:00:33]} 32. Re3 {[%clk 0:00:06]}  Nc6 {[%clk 0:00:30]} 33. Ne4 {[%clk 0:00:06]}  Rac8 {[%clk 0:00:16]} 34. Nxb6 {[%clk 0:00:06]}  Rc7 {[%clk 0:00:16]} 35. Nd5 {[%clk 0:00:07]}  Rf7 {[%clk 0:00:16]} 36. Nef6+ {[%clk 0:00:05]}  Nxf6 {[%clk 0:00:16]} 37. Nxf6+ {[%clk 0:00:06]}  Kh8 {[%clk 0:00:15]} 38. Bc4 {[%clk 0:00:06]}  Rc7 {[%clk 0:00:13]} 39. Ba2 {[%clk 0:00:04]}  Bg7 {[%clk 0:00:13]} 40. Nd5 {[%clk 0:00:03]}  Rf7 {[%clk 0:00:13]} 41. Nf6 {[%clk 0:00:02]}  Re7 {[%clk 0:00:12]} 42. Rf3 {[%clk 0:00:02]}  Rf8 {[%clk 0:00:12]} 43. Kg2 {[%clk 0:00:02]}  Rd8 {[%clk 0:00:12]} 44. Nd5 {[%clk 0:00:02]}  Re1 {[%clk 0:00:10]} 45. Nb6 {[%clk 0:00:02]}  Re2 {[%clk 0:00:10]} 46. Nc4 {[%clk 0:00:02]}  d5 {[%clk 0:00:09]} 47. Ne3 {[%clk 0:00:03]}  Rxb2 {[%clk 0:00:08]} 48. Bxd5 {[%clk 0:00:03]}  Ne7 {[%clk 0:00:07]} 49. Be6 {[%clk 0:00:03]}  Rf8 {[%clk 0:00:06]} 50. Bd6 {[%clk 0:00:02]}  Rxf3 {[%clk 0:00:06]} 51. Kxf3 {[%clk 0:00:03]}  Nc6 {[%clk 0:00:06]} 52. d5 {[%clk 0:00:03]}  Nd8 {[%clk 0:00:06]} 53. Bd7 {[%clk 0:00:02]}  Bxc3 {[%clk 0:00:05]} 54. Ke4 {[%clk 0:00:02]}  Bg7 {[%clk 0:00:05]} 55. f4 {[%clk 0:00:02]}  Ra2 {[%clk 0:00:05]} 56. Bb4 {[%clk 0:00:02]}  Nf7 {[%clk 0:00:05]} 57. Be6 {[%clk 0:00:01]}  Kg8 {[%clk 0:00:05]} 58. d6 {[%clk 0:00:01]}  Rb2 {[%clk 0:00:05]} 59. d7 {[%clk 0:00:02]}  Rb3 {[%clk 0:00:01]} 60. Bxb3 {[%clk 0:00:02]}  Bf8 {[%clk 0:00:01]} 61. Bxf7+ {[%clk 0:00:02]}  Kg7 {[%clk 0:00:02]} 62. d8=Q {[%clk 0:00:03]}  Kxf7 {[%clk 0:00:00]} 63. Qd7+ {[%clk 0:00:03]} 1-0


[Site "https://www.chess.com"]

[Event "Titled Tuesday Blitz May 16 Early 2023"]
[White "Aydincelebi, Kagan"]
[Black "Piesik, Piotr"]
[WhiteFideId "6361102"]
[BlackFideId "1136194"]
[WhiteElo "2180"]
[BlackElo "2299"]
[Result "0-1"]
[Round "07"]
[TimeControl "180+2"]
[Date "2023.05.16"]
[WhiteClock "0:00:18"]
[BlackClock "0:00:18"]

1. e4 {[%clk 0:03:00]}  c6 {[%clk 0:02:58]} 2. d4 {[%clk 0:03:00]}  d5 {[%clk 0:02:58]} 3. exd5 {[%clk 0:03:01]}  cxd5 {[%clk 0:02:58]} 4. c4 {[%clk 0:03:02]}  Nf6 {[%clk 0:02:59]} 5. Nc3 {[%clk 0:03:01]}  e6 {[%clk 0:02:59]} 6. c5 {[%clk 0:03:02]}  Nc6 {[%clk 0:02:58]} 7. Nf3 {[%clk 0:03:02]}  Be7 {[%clk 0:02:56]} 8. Rb1 {[%clk 0:03:02]}  a5 {[%clk 0:02:56]} 9. a3 {[%clk 0:03:02]}  b6 {[%clk 0:02:56]} 10. b4 {[%clk 0:03:02]}  axb4 {[%clk 0:02:56]} 11. axb4 {[%clk 0:03:03]}  bxc5 {[%clk 0:02:56]} 12. bxc5 {[%clk 0:03:04]}  O-O {[%clk 0:02:56]} 13. Bb5 {[%clk 0:03:05]}  Qc7 {[%clk 0:02:51]} 14. O-O {[%clk 0:03:05]}  Ba6 {[%clk 0:02:50]} 15. Re1 {[%clk 0:02:59]}  Bxb5 {[%clk 0:02:50]} 16. Nxb5 {[%clk 0:03:00]}  Qd7 {[%clk 0:02:48]} 17. Bf4 {[%clk 0:02:55]}  Ne4 {[%clk 0:02:48]} 18. Qd3 {[%clk 0:02:55]}  Ra2 {[%clk 0:02:43]} 19. Re2 {[%clk 0:02:52]}  Rfa8 {[%clk 0:02:42]} 20. h4 {[%clk 0:02:43]}  h6 {[%clk 0:02:42]} 21. h5 {[%clk 0:02:40]}  Bf6 {[%clk 0:02:26]} 22. Reb2 {[%clk 0:02:12]}  Rxb2 {[%clk 0:02:25]} 23. Rxb2 {[%clk 0:02:13]}  Qb7 {[%clk 0:02:21]} 24. Rb3 {[%clk 0:02:01]}  Ra1+ {[%clk 0:02:19]} 25. Kh2 {[%clk 0:01:58]}  Nxf2 {[%clk 0:02:18]} 26. Qc2 {[%clk 0:01:58]}  Rh1+ {[%clk 0:02:10]} 27. Kg3 {[%clk 0:01:52]}  Ne4+ {[%clk 0:02:11]} 28. Kg4 {[%clk 0:01:53]}  Bd8 {[%clk 0:02:00]} 29. Ne5 {[%clk 0:01:37]}  Rh4+ {[%clk 0:01:56]} 30. Kf3 {[%clk 0:01:34]}  Qxb5 {[%clk 0:01:51]} 31. Rxb5 {[%clk 0:01:10]}  Nxd4+ {[%clk 0:01:51]} 32. Ke3 {[%clk 0:01:06]}  Nxc2+ {[%clk 0:01:52]} 33. Kd3 {[%clk 0:01:06]}  Rxf4 {[%clk 0:01:50]} 34. Rb8 {[%clk 0:01:03]}  Nb4+ {[%clk 0:01:20]} 35. Ke3 {[%clk 0:01:03]}  Kh7 {[%clk 0:01:13]} 36. Kxf4 {[%clk 0:00:51]}  Bc7 {[%clk 0:01:13]} 37. Rxb4 {[%clk 0:00:51]}  f6 {[%clk 0:01:13]} 38. c6 {[%clk 0:00:52]}  Bxe5+ {[%clk 0:01:11]} 39. Ke3 {[%clk 0:00:52]}  Nc5 {[%clk 0:00:58]} 40. Rb5 {[%clk 0:00:50]}  Na6 {[%clk 0:00:55]} 41. Rb7 {[%clk 0:00:43]}  Nc7 {[%clk 0:00:55]} 42. Rb8 {[%clk 0:00:44]}  g6 {[%clk 0:00:54]} 43. g4 {[%clk 0:00:41]}  gxh5 {[%clk 0:00:54]} 44. gxh5 {[%clk 0:00:42]}  Kg7 {[%clk 0:00:54]} 45. Rd8 {[%clk 0:00:41]}  f5 {[%clk 0:00:54]} 46. Kf3 {[%clk 0:00:40]}  Kf6 {[%clk 0:00:53]} 47. Rg8 {[%clk 0:00:41]}  Kf7 {[%clk 0:00:52]} 48. Rd8 {[%clk 0:00:37]}  Nb5 {[%clk 0:00:41]} 49. Rd7+ {[%clk 0:00:27]}  Kf6 {[%clk 0:00:41]} 50. Kg2 {[%clk 0:00:22]}  Nd4 {[%clk 0:00:31]} 51. c7 {[%clk 0:00:22]}  Bxc7 {[%clk 0:00:32]} 52. Rxc7 {[%clk 0:00:22]}  Kg5 {[%clk 0:00:32]} 53. Kg3 {[%clk 0:00:20]}  e5 {[%clk 0:00:25]} 54. Rd7 {[%clk 0:00:18]}  f4+ {[%clk 0:00:23]} 55. Kh3 {[%clk 0:00:18]}  Kxh5 {[%clk 0:00:17]} 56. Rxd5 {[%clk 0:00:18]}  Nf3 {[%clk 0:00:17]} 57. Rd3 {[%clk 0:00:19]}  Ng5+ {[%clk 0:00:17]} 58. Kg2 {[%clk 0:00:19]}  Kg4 {[%clk 0:00:18]} 59. Rd5 {[%clk 0:00:18]}  e4 {[%clk 0:00:17]} 60. Kf2 {[%clk 0:00:18]}  h5 {[%clk 0:00:18]} 61. Rd1 {[%clk 0:00:18]}  e3+ {[%clk 0:00:18]} 62. Ke2 {[%clk 0:00:18]}  Ne4 {[%clk 0:00:17]} 63. Rg1+ {[%clk 0:00:18]}  Ng3+ {[%clk 0:00:17]} 64. Kd3 {[%clk 0:00:18]}  h4 {[%clk 0:00:18]} 65. Ra1 {[%clk 0:00:18]}  h3 {[%clk 0:00:18]} 66. Ra8 {[%clk 0:00:18]}  h2 {[%clk 0:00:18]} 0-1


[Site "https://www.chess.com"]

[Event "Titled Tuesday Blitz May 16 Early 2023"]
[White "Tasev, Dejan"]
[Black "Halkias, Stelios"]
[WhiteFideId "936618"]
[BlackFideId "4201809"]
[WhiteElo "2244"]
[BlackElo "2451"]
[Result "1-0"]
[Round "07"]
[TimeControl "180+2"]
[Date "2023.05.16"]
[WhiteClock "0:00:48"]
[BlackClock "0:00:03"]

1. e4 {[%clk 0:03:00]}  e5 {[%clk 0:02:57]} 2. Nf3 {[%clk 0:03:00]}  Nc6 {[%clk 0:02:58]} 3. Bc4 {[%clk 0:03:00]}  Bc5 {[%clk 0:02:57]} 4. Nc3 {[%clk 0:03:00]}  Nf6 {[%clk 0:02:57]} 5. d3 {[%clk 0:03:00]}  O-O {[%clk 0:02:56]} 6. Be3 {[%clk 0:03:00]}  d6 {[%clk 0:02:55]} 7. h3 {[%clk 0:03:00]}  h6 {[%clk 0:02:54]} 8. Qd2 {[%clk 0:02:59]}  Be6 {[%clk 0:02:52]} 9. Bb3 {[%clk 0:03:00]}  Qd7 {[%clk 0:02:41]} 10. O-O-O {[%clk 0:02:51]}  Bxb3 {[%clk 0:02:35]} 11. axb3 {[%clk 0:02:51]}  a5 {[%clk 0:02:35]} 12. g4 {[%clk 0:02:50]}  Nd4 {[%clk 0:02:26]} 13. Bxd4 {[%clk 0:02:40]}  exd4 {[%clk 0:02:25]} 14. Nb1 {[%clk 0:02:25]}  Nh7 {[%clk 0:02:03]} 15. Rdg1 {[%clk 0:02:21]}  f6 {[%clk 0:02:01]} 16. h4 {[%clk 0:02:21]}  b5 {[%clk 0:01:57]} 17. Rg3 {[%clk 0:02:15]}  d5 {[%clk 0:01:35]} 18. g5 {[%clk 0:02:11]}  Bd6 {[%clk 0:01:33]} 19. e5 {[%clk 0:02:06]}  fxe5 {[%clk 0:01:33]} 20. gxh6 {[%clk 0:02:06]}  e4 {[%clk 0:01:30]} 21. Rxg7+ {[%clk 0:02:03]}  Qxg7 {[%clk 0:01:29]} 22. hxg7 {[%clk 0:02:04]}  Rxf3 {[%clk 0:01:30]} 23. Qe2 {[%clk 0:01:56]}  a4 {[%clk 0:01:20]} 24. bxa4 {[%clk 0:01:53]}  Rf4 {[%clk 0:00:59]} 25. dxe4 {[%clk 0:01:49]}  dxe4 {[%clk 0:00:57]} 26. Qxb5 {[%clk 0:01:47]}  Nf6 {[%clk 0:00:57]} 27. h5 {[%clk 0:01:42]}  Rxf2 {[%clk 0:00:54]} 28. h6 {[%clk 0:01:33]}  Kh7 {[%clk 0:00:40]} 29. Na3 {[%clk 0:01:10]}  d3 {[%clk 0:00:34]} 30. cxd3 {[%clk 0:01:05]}  e3 {[%clk 0:00:32]} 31. Nc4 {[%clk 0:00:59]}  e2 {[%clk 0:00:31]} 32. Re1 {[%clk 0:00:58]}  Re8 {[%clk 0:00:25]} 33. Nxd6 {[%clk 0:00:55]}  cxd6 {[%clk 0:00:25]} 34. Kd2 {[%clk 0:00:52]}  d5 {[%clk 0:00:15]} 35. a5 {[%clk 0:00:50]}  Kxh6 {[%clk 0:00:13]} 36. a6 {[%clk 0:00:49]}  Kxg7 {[%clk 0:00:12]} 37. a7 {[%clk 0:00:49]}  Rc8 {[%clk 0:00:09]} 38. Qb7+ {[%clk 0:00:48]}  Kg6 {[%clk 0:00:03]} 39. Qxc8 {[%clk 0:00:48]} 1-0


[Site "https://www.chess.com"]

[Event "Titled Tuesday Blitz May 16 Early 2023"]
[White "Starozhilov, Leonid"]
[Black "egorchess95"]
[WhiteFideId "14106752"]
[WhiteElo "2352"]
[BlackElo "2570"]
[Result "1-0"]
[Round "07"]
[TimeControl "180+2"]
[Date "2023.05.16"]
[WhiteClock "0:00:06"]
[BlackClock "0:00:04"]

1. e4 {[%clk 0:02:57]}  c5 {[%clk 0:03:00]} 2. Nf3 {[%clk 0:02:54]}  Nc6 {[%clk 0:03:00]} 3. Bb5 {[%clk 0:02:54]}  g6 {[%clk 0:02:57]} 4. O-O {[%clk 0:02:54]}  Bg7 {[%clk 0:02:56]} 5. Nc3 {[%clk 0:02:55]}  Nf6 {[%clk 0:02:53]} 6. Bxc6 {[%clk 0:02:47]}  bxc6 {[%clk 0:02:41]} 7. e5 {[%clk 0:02:44]}  Ng4 {[%clk 0:02:41]} 8. Re1 {[%clk 0:02:36]}  Qc7 {[%clk 0:02:38]} 9. Qe2 {[%clk 0:02:21]}  Nh6 {[%clk 0:02:24]} 10. Ne4 {[%clk 0:02:15]}  O-O {[%clk 0:01:48]} 11. Nxc5 {[%clk 0:02:13]}  d6 {[%clk 0:01:48]} 12. Nb3 {[%clk 0:02:08]}  Bg4 {[%clk 0:01:47]} 13. exd6 {[%clk 0:02:04]}  exd6 {[%clk 0:01:48]} 14. h3 {[%clk 0:02:04]}  Be6 {[%clk 0:01:47]} 15. d4 {[%clk 0:01:57]}  Nf5 {[%clk 0:01:47]} 16. c3 {[%clk 0:01:54]}  a5 {[%clk 0:01:47]} 17. g4 {[%clk 0:01:46]}  Ne7 {[%clk 0:01:23]} 18. Ng5 {[%clk 0:01:45]}  Kh8 {[%clk 0:01:24]} 19. Nxe6 {[%clk 0:01:39]}  fxe6 {[%clk 0:01:24]} 20. Qxe6 {[%clk 0:01:37]}  Nd5 {[%clk 0:01:25]} 21. c4 {[%clk 0:00:41]}  Nb4 {[%clk 0:01:20]} 22. Qe4 {[%clk 0:00:22]}  d5 {[%clk 0:01:18]} 23. cxd5 {[%clk 0:00:17]}  cxd5 {[%clk 0:01:19]} 24. Qe7 {[%clk 0:00:17]}  Qxe7 {[%clk 0:00:37]} 25. Rxe7 {[%clk 0:00:17]}  Nc2 {[%clk 0:00:34]} 26. Rb1 {[%clk 0:00:15]}  a4 {[%clk 0:00:35]} 27. Nc5 {[%clk 0:00:14]}  Bxd4 {[%clk 0:00:25]} 28. Nd3 {[%clk 0:00:10]}  Rf3 {[%clk 0:00:25]} 29. Be3 {[%clk 0:00:06]}  Nxe3 {[%clk 0:00:12]} 30. fxe3 {[%clk 0:00:07]}  Rxe3 {[%clk 0:00:13]} 31. Rxe3 {[%clk 0:00:06]}  Bxe3+ {[%clk 0:00:14]} 32. Kg2 {[%clk 0:00:07]}  Rc8 {[%clk 0:00:15]} 33. Kf3 {[%clk 0:00:06]}  d4 {[%clk 0:00:15]} 34. b4 {[%clk 0:00:06]}  Kg7 {[%clk 0:00:13]} 35. b5 {[%clk 0:00:06]}  Bg5 {[%clk 0:00:06]} 36. b6 {[%clk 0:00:06]}  Be7 {[%clk 0:00:07]} 37. b7 {[%clk 0:00:06]}  Rb8 {[%clk 0:00:06]} 38. Ke4 {[%clk 0:00:06]}  Kf6 {[%clk 0:00:05]} 39. Kd5 {[%clk 0:00:06]}  Bd8 {[%clk 0:00:03]} 40. Ne5 {[%clk 0:00:05]}  Bc7 {[%clk 0:00:01]} 41. Nd7+ {[%clk 0:00:05]}  Ke7 {[%clk 0:00:01]} 42. Nxb8 {[%clk 0:00:06]}  Bxb8 {[%clk 0:00:02]} 43. Kxd4 {[%clk 0:00:07]}  Kd7 {[%clk 0:00:01]} 44. Kd5 {[%clk 0:00:07]}  Kc7 {[%clk 0:00:02]} 45. Rb4 {[%clk 0:00:07]}  a3 {[%clk 0:00:02]} 46. Rb3 {[%clk 0:00:07]}  Ba7 {[%clk 0:00:02]} 47. Ke6 {[%clk 0:00:07]}  Bb8 {[%clk 0:00:03]} 48. Kf7 {[%clk 0:00:06]}  h5 {[%clk 0:00:04]} 1-0


[Site "https://www.chess.com"]

[Event "Titled Tuesday Blitz May 16 Early 2023"]
[White "Baghdasaryan, Vahe"]
[Black "Lavrik, Dmitry"]
[WhiteFideId "13303139"]
[BlackFideId "24113190"]
[WhiteElo "2216"]
[BlackElo "2345"]
[Result "0-1"]
[Round "07"]
[TimeControl "180+2"]
[Date "2023.05.16"]
[WhiteClock "0:00:00"]
[BlackClock "0:00:06"]

1. e4 {[%clk 0:03:00]}  c5 {[%clk 0:02:56]} 2. Nf3 {[%clk 0:02:59]}  d6 {[%clk 0:02:56]} 3. d4 {[%clk 0:02:59]}  cxd4 {[%clk 0:02:57]} 4. Nxd4 {[%clk 0:02:59]}  Nf6 {[%clk 0:02:58]} 5. Nc3 {[%clk 0:02:58]}  Nc6 {[%clk 0:02:58]} 6. Bg5 {[%clk 0:02:55]}  e6 {[%clk 0:02:58]} 7. Qd2 {[%clk 0:02:53]}  Be7 {[%clk 0:02:50]} 8. O-O-O {[%clk 0:02:49]}  O-O {[%clk 0:02:45]} 9. f4 {[%clk 0:02:47]}  Nxd4 {[%clk 0:02:33]} 10. Qxd4 {[%clk 0:02:47]}  Qa5 {[%clk 0:02:34]} 11. Kb1 {[%clk 0:02:35]}  Rd8 {[%clk 0:02:22]} 12. Be2 {[%clk 0:02:33]}  Bd7 {[%clk 0:02:16]} 13. h4 {[%clk 0:01:27]}  Bc6 {[%clk 0:01:50]} 14. Bf3 {[%clk 0:01:27]}  h6 {[%clk 0:01:43]} 15. Qf2 {[%clk 0:01:25]}  b5 {[%clk 0:01:36]} 16. e5 {[%clk 0:01:20]}  Bxf3 {[%clk 0:01:18]} 17. exf6 {[%clk 0:01:19]}  Bxd1 {[%clk 0:01:12]} 18. fxe7 {[%clk 0:01:19]}  Rd7 {[%clk 0:01:05]} 19. Nxd1 {[%clk 0:00:56]}  f6 {[%clk 0:00:59]} 20. Bxf6 {[%clk 0:00:51]}  gxf6 {[%clk 0:00:59]} 21. Qg3+ {[%clk 0:00:48]}  Kf7 {[%clk 0:00:59]} 22. h5 {[%clk 0:00:41]}  Re8 {[%clk 0:00:36]} 23. f5 {[%clk 0:00:25]}  exf5 {[%clk 0:00:12]} 24. Re1 {[%clk 0:00:25]}  Rdxe7 {[%clk 0:00:12]} 25. Qg6+ {[%clk 0:00:24]}  Kf8 {[%clk 0:00:12]} 26. Qxf6+ {[%clk 0:00:25]}  Kg8 {[%clk 0:00:10]} 27. Rxe7 {[%clk 0:00:25]}  Rxe7 {[%clk 0:00:10]} 28. Qxe7 {[%clk 0:00:25]}  Qd2 {[%clk 0:00:11]} 29. Nc3 {[%clk 0:00:24]}  b4 {[%clk 0:00:12]} 30. Qe6+ {[%clk 0:00:15]}  Kh8 {[%clk 0:00:12]} 31. Qd5 {[%clk 0:00:15]}  bxc3 {[%clk 0:00:12]} 32. Qa8+ {[%clk 0:00:12]}  Kg7 {[%clk 0:00:12]} 33. Qxa7+ {[%clk 0:00:13]}  Kf6 {[%clk 0:00:12]} 34. bxc3 {[%clk 0:00:12]}  Qxc3 {[%clk 0:00:12]} 35. Qb6 {[%clk 0:00:12]}  Qd2 {[%clk 0:00:11]} 36. a4 {[%clk 0:00:12]}  Qxg2 {[%clk 0:00:11]} 37. a5 {[%clk 0:00:12]}  f4 {[%clk 0:00:10]} 38. a6 {[%clk 0:00:12]}  f3 {[%clk 0:00:09]} 39. Qxd6+ {[%clk 0:00:10]}  Kg5 {[%clk 0:00:08]} 40. Qd5+ {[%clk 0:00:10]}  Kg4 {[%clk 0:00:07]} 41. Qd4+ {[%clk 0:00:09]}  Kg3 {[%clk 0:00:06]} 42. a7 {[%clk 0:00:09]}  Qf1+ {[%clk 0:00:06]} 43. Kb2 {[%clk 0:00:07]}  Qb5+ {[%clk 0:00:07]} 44. Kc3 {[%clk 0:00:07]}  Qc6+ {[%clk 0:00:07]} 45. Qc4 {[%clk 0:00:05]}  Qf6+ {[%clk 0:00:07]} 46. Kb3 {[%clk 0:00:05]}  Qb6+ {[%clk 0:00:04]} 47. Kc3 {[%clk 0:00:05]}  Qxa7 {[%clk 0:00:05]} 48. Qg8+ {[%clk 0:00:05]}  Kf2 {[%clk 0:00:05]} 49. Qf8 {[%clk 0:00:01]}  Qe3+ {[%clk 0:00:05]} 50. Kb2 {[%clk 0:00:00]}  Ke2 {[%clk 0:00:06]} 0-1


[Site "https://www.chess.com"]

[Event "Titled Tuesday Blitz May 16 Early 2023"]
[White "Kubicka, Anna"]
[Black "Itgelt, Khuyagtsogt"]
[WhiteFideId "1152254"]
[BlackFideId "4902912"]
[WhiteElo "2144"]
[BlackElo "2227"]
[Result "1-0"]
[Round "07"]
[TimeControl "180+2"]
[Date "2023.05.16"]
[WhiteClock "0:00:13"]
[BlackClock "0:00:00"]

1. e4 {[%clk 0:03:00]}  e6 {[%clk 0:02:57]} 2. d4 {[%clk 0:03:00]}  d5 {[%clk 0:02:58]} 3. Nd2 {[%clk 0:03:00]}  c5 {[%clk 0:02:57]} 4. exd5 {[%clk 0:03:00]}  exd5 {[%clk 0:02:58]} 5. Ngf3 {[%clk 0:02:58]}  Nc6 {[%clk 0:02:58]} 6. Bb5 {[%clk 0:02:58]}  Qe7+ {[%clk 0:02:59]} 7. Qe2 {[%clk 0:02:56]}  Qxe2+ {[%clk 0:02:59]} 8. Bxe2 {[%clk 0:02:55]}  Bf5 {[%clk 0:02:56]} 9. dxc5 {[%clk 0:02:37]}  Bxc2 {[%clk 0:02:23]} 10. Nb3 {[%clk 0:02:15]}  Bxb3 {[%clk 0:02:16]} 11. axb3 {[%clk 0:02:16]}  Bxc5 {[%clk 0:02:17]} 12. O-O {[%clk 0:02:11]}  Nge7 {[%clk 0:02:10]} 13. Rd1 {[%clk 0:02:03]}  O-O {[%clk 0:02:02]} 14. Bf4 {[%clk 0:02:01]}  Bb6 {[%clk 0:01:57]} 15. Ra4 {[%clk 0:01:52]}  Rfe8 {[%clk 0:01:53]} 16. Bd3 {[%clk 0:01:44]}  Rad8 {[%clk 0:01:45]} 17. h3 {[%clk 0:01:39]}  Ng6 {[%clk 0:01:36]} 18. Bg3 {[%clk 0:01:38]}  Nge5 {[%clk 0:01:18]} 19. Nxe5 {[%clk 0:01:38]}  Nxe5 {[%clk 0:01:19]} 20. Bb5 {[%clk 0:01:38]}  Nc6 {[%clk 0:01:19]} 21. Rg4 {[%clk 0:01:22]}  f6 {[%clk 0:01:12]} 22. Bh4 {[%clk 0:01:09]}  Kf7 {[%clk 0:01:06]} 23. Bg3 {[%clk 0:00:55]}  g6 {[%clk 0:00:55]} 24. Rh4 {[%clk 0:00:47]}  h5 {[%clk 0:00:55]} 25. Ra4 {[%clk 0:00:47]}  Re6 {[%clk 0:00:36]} 26. Raa1 {[%clk 0:00:38]}  Nd4 {[%clk 0:00:31]} 27. Ba4 {[%clk 0:00:28]}  Ne2+ {[%clk 0:00:24]} 28. Kh2 {[%clk 0:00:27]}  Nxg3 {[%clk 0:00:11]} 29. fxg3 {[%clk 0:00:27]}  Re2 {[%clk 0:00:11]} 30. Rd3 {[%clk 0:00:14]}  Rxb2 {[%clk 0:00:08]} 31. Rad1 {[%clk 0:00:14]}  d4 {[%clk 0:00:07]} 32. Bb5 {[%clk 0:00:15]}  Kg7 {[%clk 0:00:02]} 33. Bc4 {[%clk 0:00:15]}  Re2 {[%clk 0:00:00]} 34. Rxd4 {[%clk 0:00:13]} 1-0


[Site "https://www.chess.com"]

[Event "Titled Tuesday Blitz May 16 Early 2023"]
[White "Jovic, Stanoje"]
[Black "Girya, Olga"]
[WhiteFideId "905020"]
[BlackFideId "4195752"]
[WhiteElo "2236"]
[BlackElo "2263"]
[Result "1-0"]
[Round "07"]
[TimeControl "180+2"]
[Date "2023.05.16"]
[WhiteClock "0:00:24"]
[BlackClock "0:00:00"]

1. c4 {[%clk 0:03:00]}  Nf6 {[%clk 0:02:58]} 2. g3 {[%clk 0:03:00]}  e6 {[%clk 0:02:57]} 3. Bg2 {[%clk 0:03:01]}  d5 {[%clk 0:02:57]} 4. Nf3 {[%clk 0:03:01]}  Be7 {[%clk 0:02:58]} 5. O-O {[%clk 0:03:01]}  O-O {[%clk 0:02:58]} 6. b3 {[%clk 0:03:01]}  c5 {[%clk 0:02:57]} 7. cxd5 {[%clk 0:03:00]}  Nxd5 {[%clk 0:02:53]} 8. Bb2 {[%clk 0:03:00]}  Nc6 {[%clk 0:02:53]} 9. d3 {[%clk 0:03:00]}  Bf6 {[%clk 0:02:48]} 10. Qc1 {[%clk 0:02:59]}  Bxb2 {[%clk 0:02:43]} 11. Qxb2 {[%clk 0:02:58]}  b6 {[%clk 0:02:36]} 12. Nbd2 {[%clk 0:02:57]}  Qf6 {[%clk 0:02:32]} 13. Qxf6 {[%clk 0:02:55]}  Nxf6 {[%clk 0:02:32]} 14. Rac1 {[%clk 0:02:54]}  Rb8 {[%clk 0:02:15]} 15. a3 {[%clk 0:02:47]}  Bb7 {[%clk 0:02:14]} 16. Nc4 {[%clk 0:02:36]}  Rfd8 {[%clk 0:02:12]} 17. Rc2 {[%clk 0:02:34]}  Nd5 {[%clk 0:01:41]} 18. Rfc1 {[%clk 0:02:31]}  f6 {[%clk 0:01:37]} 19. e3 {[%clk 0:02:22]}  Nde7 {[%clk 0:01:32]} 20. Ne1 {[%clk 0:02:13]}  e5 {[%clk 0:01:29]} 21. Nd2 {[%clk 0:02:05]}  Ba6 {[%clk 0:01:08]} 22. Bf1 {[%clk 0:01:49]}  Rbc8 {[%clk 0:01:00]} 23. Bh3 {[%clk 0:01:39]}  Rc7 {[%clk 0:00:56]} 24. Bf1 {[%clk 0:01:35]}  Rcc8 {[%clk 0:00:28]} 25. Bh3 {[%clk 0:01:34]}  Rb8 {[%clk 0:00:29]} 26. Bf1 {[%clk 0:01:31]}  Kf8 {[%clk 0:00:28]} 27. b4 {[%clk 0:01:30]}  cxb4 {[%clk 0:00:25]} 28. Rxc6 {[%clk 0:01:29]}  Nxc6 {[%clk 0:00:25]} 29. Rxc6 {[%clk 0:01:29]}  Rbc8 {[%clk 0:00:18]} 30. Rxc8 {[%clk 0:01:25]}  Rxc8 {[%clk 0:00:19]} 31. axb4 {[%clk 0:01:25]}  Rc1 {[%clk 0:00:19]} 32. Ndf3 {[%clk 0:01:14]}  Rb1 {[%clk 0:00:19]} 33. Nc2 {[%clk 0:01:13]}  Bxd3 {[%clk 0:00:18]} 34. Nce1 {[%clk 0:01:06]}  Bxf1 {[%clk 0:00:15]} 35. Kxf1 {[%clk 0:01:06]}  Rxb4 {[%clk 0:00:15]} 36. Ke2 {[%clk 0:01:03]}  Rb2+ {[%clk 0:00:15]} 37. Nd2 {[%clk 0:01:03]}  a5 {[%clk 0:00:14]} 38. Nd3 {[%clk 0:01:03]}  Rc2 {[%clk 0:00:14]} 39. Kd1 {[%clk 0:01:02]}  Rc3 {[%clk 0:00:14]} 40. Nb2 {[%clk 0:00:56]}  b5 {[%clk 0:00:14]} 41. Ne4 {[%clk 0:00:55]}  Rc6 {[%clk 0:00:14]} 42. Kd2 {[%clk 0:00:52]}  a4 {[%clk 0:00:13]} 43. Nd3 {[%clk 0:00:39]}  Rc4 {[%clk 0:00:13]} 44. Nd6 {[%clk 0:00:37]}  a3 {[%clk 0:00:00]} 45. Nc1 {[%clk 0:00:24]} 1-0


[Site "https://www.chess.com"]